bitfinex/quotes_ETHUSD_20241130
["timestamp","ask_amount","ask_price","bid_price","bid_amount"]
[1732945022657,2.72933,3664.0,3662.3,0.8024]
[1732945022658,0.3869,3663.9,3662.3,0.8024]
[1732945022804,0.64165135,3663.9,3662.3,0.8024]
[1732945023108,3.64165135,3663.9,3662.3,0.8024]
[1732945023315,0.25475135,3663.8,3662.3,0.8024]
[1732945023682,0.55,3663.7,3662.3,0.8024]
[1732945023894,0.55,3663.8,3662.3,0.8024]
[1732945024047,5.72923,3664.1,3662.3,0.8024]
[1732945024243,5.72923,3664.1,3662.2,0.84492315]
[1732945024244,0.25474799,3664.0,3662.8,2.10195799]
[1732945024583,3.11577,3664.6,3662.9,0.8024]
[1732945024749,0.25474799,3664.5,3663.8,2.72935]
[1732945024946,0.3869,3664.6,3663.8,0.7765]
[1732945025244,0.3869,3664.6,3664.1,2.72917]
[1732945025444,0.3869,3664.6,3664.0,2.72924]
[1732945026290,0.03411381,3664.5,3663.8,0.7765]
[1732945026448,2.72898,3664.4,3663.7,2.72947]
[1732945026793,2.72889,3664.5,3663.5,0.7705]
[1732945026965,3.11572,3664.6,3663.5,0.7705]
[1732945027285,0.3869,3664.6,3663.5,0.7705]
[1732945027507,1.161564,3664.5,3663.5,0.7705]
[1732945027698,0.55,3664.2,3663.5,0.7705]
[1732945027881,0.55,3664.3,3663.5,0.7705]
[1732945028275,0.55,3664.5,3663.5,0.7705]
[1732945028518,0.55,3664.3,3663.5,0.7705]
[1732945028809,0.55,3664.1,3663.5,0.7705]
[1732945029508,3.27921,3664.1,3663.5,0.7705]
[1732945029836,3.27921,3664.1,3662.4,2.26669031]
[1732945029837,0.55,3663.7,3662.5,0.7705]
[1732945030178,0.33133258,3664.1,3662.5,0.7705]
[1732945030496,2.7288,3664.7,3662.1,0.1]
[1732945030497,0.55,3664.4,3662.9,0.7705]
[1732945030871,0.8047819,3664.4,3662.9,0.7705]
[1732945031076,0.55,3664.4,3662.9,0.7705]
[1732945031276,0.8047799,3664.4,3662.9,0.7705]
[1732945031515,3.27896,3664.4,3662.9,0.7705]
[1732945031817,3.27896,3664.4,3663.1,0.7705]
[1732945032486,0.55,3664.7,3663.1,0.7705]
[1732945032717,0.38182237,3666.1,3663.7,0.7705]
[1732945033012,2.72814,3665.5,3663.8,0.7705]
[1732945033220,3.11504,3665.5,3663.8,0.7705]
[1732945033378,3.33518966,3665.4,3664.0,0.7705]
[1732945033581,3.08050909,3665.4,3664.0,0.7705]
[1732945033906,2.76241554,3665.3,3664.0,0.7705]
[1732945034087,2.7285,3665.1,3664.0,0.7705]
[1732945034294,0.55,3664.9,3664.0,0.7705]
[1732945034489,6.08053909,3665.4,3664.0,0.7705]
[1732945034686,0.91956191,3665.3,3664.0,0.7705]
[1732945034872,0.95366613,3665.3,3664.0,0.7705]
[1732945035084,2.72827,3665.4,3664.0,0.7705]
[1732945035379,3.0,3665.5,3664.0,0.7705]
[1732945035574,3.0,3665.5,3663.3,2.47089914]
[1732945035575,3.0,3665.5,3664.2,0.54922669]
[1732945035884,0.55,3665.3,3664.3,0.7705]
[1732945036288,0.55,3665.5,3664.3,0.7705]
[1732945036494,0.55,3665.3,3664.3,0.7705]
[1732945036907,3.1562423,3666.0,3664.3,0.7705]
[1732945037074,0.1562423,3666.0,3664.3,0.7705]
[1732945037514,2.8840123,3666.0,3664.3,0.7705]
[1732945037814,0.1562423,3666.0,3664.3,0.7705]
[1732945038333,0.1562423,3666.0,3664.5,0.7705]
[1732945041188,0.1562423,3666.0,3664.7,0.7705]
[1732945041419,0.1562423,3666.0,3665.1,0.7705]
[1732945042231,0.1562423,3666.0,3665.3,0.1]
[1732945042447,0.1562423,3666.0,3665.4,0.7705]
[1732945042806,0.1562423,3666.0,3665.5,0.7705]
[1732945043142,0.1562423,3666.0,3665.7,0.7705]
[1732945044155,0.1562423,3666.0,3665.9,0.54093303]
[1732945044312,0.1562423,3666.0,3665.9,1.31143303]
[1732945045411,3.0,3668.0,3666.0,0.7705]
[1732945045743,2.72688,3667.2,3666.0,0.8284]
[1732945045943,2.72688,3667.2,3666.1,0.1369333]
[1732945046130,2.7268,3667.3,3666.1,0.1369333]
[1732945046450,0.55,3667.5,3666.2,0.8284]
[1732945046650,3.27694,3667.2,3666.2,0.8284]
[1732945046955,2.72694,3667.2,3666.2,0.8284]
[1732945047926,2.72695,3667.1,3666.2,0.8284]
[1732945048449,2.72702,3667.0,3666.2,0.8284]
[1732945048662,2.72702,3667.0,3666.2,0.9653333]
[1732945049146,0.55,3667.1,3666.2,0.8284]
[1732945049349,2.72727,3666.7,3666.2,0.8284]
[1732945049851,2.72727,3666.7,3665.9,0.54093303]
[1732945050930,3.2702,3666.9,3665.8,0.8284]
[1732945050931,2.72742,3666.5,3665.8,0.8284]
[1732945052062,2.72782,3666.0,3665.7,0.55689101]
[1732945052297,2.7274,3666.5,3665.7,0.69542011]
[1732945052575,0.5431,3666.9,3665.7,0.69542011]
[1732945052576,2.72782,3666.0,3665.7,0.55689101]
[1732945052729,2.72782,3666.0,3665.5,0.8284]
[1732945052927,2.72792,3665.8,3665.5,0.8284]
[1732945053832,2.72784,3665.9,3665.5,0.8284]
[1732945054077,0.55,3665.7,3664.4,0.37906258]
[1732945054279,3.27828,3665.4,3664.6,0.53740937]
[1732945055073,2.72853,3665.0,3664.2,0.8284]
[1732945055256,2.72881,3664.6,3664.2,0.8284]
[1732945055458,2.72879,3664.7,3664.2,0.8284]
[1732945055633,2.72829,3665.3,3664.2,1.10366348]
[1732945055837,0.55,3665.2,3664.2,1.10366348]
[1732945056033,2.72864,3664.9,3664.2,1.10366348]
[1732945056584,2.72874,3664.7,3664.2,1.10366348]
[1732945056763,2.72879,3664.7,3664.2,1.10366348]
[1732945057074,2.72879,3664.7,3664.0,1.371]
[1732945057075,0.55,3664.6,3664.0,1.371]
[1732945057478,0.55,3664.3,3664.0,1.371]
[1732945057685,3.27903,3664.3,3664.0,1.371]
[1732945058162,0.55,3664.5,3664.0,1.371]
[1732945058363,2.72903,3664.3,3664.0,1.371]
[1732945058571,0.55,3664.3,3664.0,1.371]
[1732945058952,0.55,3664.5,3664.0,1.371]
[1732945059489,2.72832,3665.3,3664.0,1.371]
[1732945059490,2.72839,3665.2,3664.1,0.8284]
[1732945059690,2.72821,3665.5,3664.1,0.8284]
[1732945059991,2.72841,3665.2,3664.1,0.8284]
[1732945060159,2.72841,3665.2,3664.2,0.241934]
[1732945062750,3.5431,3665.7,3664.2,0.241934]
[1732945062751,2.72845,3665.1,3664.2,0.241934]
[1732945063149,2.72888,3664.5,3664.0,1.371]
[1732945063362,3.27859,3664.9,3664.0,1.371]
[1732945063564,2.7288,3664.7,3664.0,1.371]
[1732945063764,2.72894,3664.5,3664.0,1.371]
[1732945063973,2.72894,3664.5,3664.0,1.59094]
[1732945064277,2.72891,3664.5,3664.0,1.371]
[1732945064478,3.27896,3664.4,3664.0,1.371]
[1732945064781,0.55,3664.5,3664.0,1.371]
[1732945065042,2.72866,3664.8,3664.1,0.8284]
[1732945065178,5.45737,3664.8,3664.1,3.55751]
[1732945065369,2.72889,3664.5,3664.2,0.492851]
[1732945065610,2.72918,3664.1,3664.0,1.371]
[1732945065798,0.55,3664.1,3664.0,1.371]
[1732945066068,3.27918,3664.1,3664.0,1.371]
[1732945066918,6.27918,3664.1,3664.0,1.371]
[1732945067719,6.82228,3664.1,3664.0,1.371]
[1732945068187,7.07608303,3664.1,3664.0,1.371]
[1732945068400,6.82228,3664.1,3664.0,1.371]
[1732945068912,9.55016022,3664.1,3664.0,1.371]
[1732945069070,9.55016022,3664.1,3662.4,0.786]
[1732945069071,0.5431,3663.9,3662.4,0.786]
[1732945069273,2.7302,3662.8,3662.4,0.786]
[1732945069672,2.73023,3662.7,3662.4,0.786]
[1732945070084,2.73023,3662.7,3662.1,2.73067]
[1732945070317,2.73023,3662.7,3662.1,3.355425]
[1732945070524,2.73023,3662.7,3662.1,0.624755]
[1732945070811,0.55,3662.8,3662.1,0.624755]
[1732945071025,0.55,3662.8,3662.2,2.73054]
[1732945071209,0.55,3662.9,3662.3,2.73045]
[1732945071714,0.55,3662.9,3662.4,2.73043]
[1732945072020,0.55,3662.9,3661.7,0.54458067]
[1732945072021,0.55,3663.1,3662.1,0.786]
[1732945072223,2.47425494,3664.1,3662.7,3.51622]
[1732945072539,2.72965,3663.5,3662.8,2.73013]
[1732945072721,2.72949,3663.7,3662.8,2.73013]
[1732945072890,2.72949,3663.7,3662.7,0.786]
[1732945073096,2.72964,3663.5,3662.9,2.73007]
[1732945073290,0.5431,3663.4,3662.5,2.73031]
[1732945073535,2.72953,3663.7,3662.9,2.73004]
[1732945073707,0.55,3663.8,3662.9,2.73004]
[1732945074032,2.72973,3663.4,3662.7,2.73021]
[1732945074201,2.72948,3663.7,3662.7,2.73021]
[1732945074202,0.55,3663.5,3662.7,2.73021]
[1732945074400,2.72971,3663.4,3662.7,2.73021]
[1732945074602,0.55,3663.5,3662.8,0.786]
[1732945074803,0.55,3663.5,3663.1,2.72992]
[1732945075010,0.55,3663.8,3663.2,2.72983]
[1732945075688,3.27944,3663.8,3662.9,2.73007]
[1732945075892,3.27944,3663.8,3662.8,0.786]
[1732945075893,0.55,3663.8,3663.3,2.72976]
[1732945076331,0.55,3663.6,3663.0,2.72993]
[1732945076705,0.55,3663.5,3662.8,3.51614]
[1732945077119,0.55,3663.5,3662.9,2.73004]
[1732945078009,0.55,3663.1,3662.4,2.73038]
[1732945078207,2.76415559,3663.0,3662.2,1.137674]
[1732945078420,2.73009,3662.9,3662.3,2.73051]
[1732945078610,2.73002,3663.0,3662.3,2.73051]
[1732945079236,2.73007,3662.9,3662.3,2.73051]
[1732945079638,0.55,3663.1,3662.4,2.73044]
[1732945079808,0.55,3662.9,3662.4,2.73044]
[1732945080140,0.55,3663.2,3662.6,2.73024]
[1732945080339,0.55,3663.4,3662.7,2.73021]
[1732945080513,0.55,3663.4,3662.9,0.786]
[1732945080714,0.5431,3663.6,3662.9,0.786]
[1732945080715,2.7298,3663.3,3662.9,0.786]
[1732945081025,0.03412261,3663.9,3663.2,2.72983]
[1732945081026,2.72936,3663.9,3663.2,2.72983]
[1732945081230,2.72946,3663.8,3663.2,2.72984]
[1732945081411,0.87467149,3663.9,3663.2,3.51584]
[1732945081750,0.5431,3664.0,3663.5,2.72959]
[1732945081905,0.5431,3664.0,3663.4,2.72963]
[1732945082106,3.27168,3664.9,3663.4,2.72965]
[1732945082305,0.5431,3664.9,3663.9,0.786]
[1732945082505,2.72866,3664.8,3664.0,2.72922]
[1732945082728,3.055836,3664.8,3663.9,3.51529]
[1732945083407,3.055836,3664.8,3664.1,2.72912]
[1732945083600,3.055836,3664.8,3663.9,3.51529]
[1732945083601,0.327176,3664.8,3664.2,2.72904]
[1732945083805,0.5431,3664.9,3664.2,2.72904]
[1732945084106,0.03411012,3664.8,3664.2,2.72904]
[1732945084502,3.27174,3664.9,3664.2,2.72904]
[1732945084942,0.55,3664.8,3664.2,2.72904]
[1732945085453,0.55,3664.8,3663.9,0.786]
[1732945085454,3.31281012,3664.8,3664.1,2.72916]
[1732945085605,3.31281012,3664.8,3664.1,5.45832]
[1732945085912,3.27868,3664.8,3664.1,2.72916]
[1732945086543,2.72844,3665.1,3664.1,2.72916]
[1732945086544,5.72837,3665.2,3664.5,2.72886]
[1732945086843,2.72837,3665.2,3664.5,2.72886]
[1732945087003,2.72852,3665.0,3664.1,3.353629]
[1732945087199,2.72857,3665.0,3664.1,3.353569]
[1732945087399,2.72857,3665.0,3664.4,2.72895]
[1732945088072,0.55,3665.0,3664.4,2.72895]
[1732945088935,0.5431,3665.3,3664.1,0.624449]
[1732945088936,0.55,3665.2,3664.6,0.7621]
[1732945089324,3.27841,3665.2,3664.6,0.7621]
[1732945089656,2.72859,3664.9,3664.2,2.72908]
[1732945090423,2.72859,3664.9,3664.1,2.72912]
[1732945090632,3.27858,3664.9,3664.2,2.72907]
[1732945090848,3.27858,3664.9,3664.2,5.45812]
[1732945091020,3.27858,3664.9,3664.2,2.72905]
[1732945091419,3.2786,3664.9,3664.2,2.72907]
[1732945091629,0.55,3664.9,3664.0,2.72921]
[1732945091830,2.72874,3664.7,3664.0,2.72921]
[1732945092133,2.72903,3664.3,3663.7,3.49157]
[1732945092332,2.72903,3664.3,3663.7,0.7621]
[1732945092639,0.55,3664.4,3663.7,3.49156]
[1732945092840,0.55,3664.4,3663.9,2.72926]
[1732945093038,2.72845,3665.1,3664.3,2.72903]
[1732945093253,0.55,3665.0,3664.4,2.72888]
[1732945093627,2.72851,3665.0,3664.4,2.72888]
[1732945093825,0.55,3664.9,3664.4,2.72888]
[1732945094025,0.55,3664.9,3664.3,0.7908]
[1732945094026,0.5431,3665.2,3664.5,2.72887]
[1732945094338,0.55,3665.1,3664.6,2.72875]
[1732945094724,0.5431,3665.2,3664.5,2.72887]
[1732945094932,3.27124,3665.5,3664.8,2.72866]
[1732945096268,0.55,3665.4,3664.8,2.72866]
[1732945096636,0.55,3665.4,3664.9,2.72856]
[1732945097078,0.55,3665.5,3665.0,2.72848]
[1732945097384,0.55,3665.5,3664.9,2.72856]
[1732945097751,3.27814,3665.5,3664.9,2.72856]
[1732945098271,3.27801,3665.7,3664.9,2.72856]
[1732945098472,4.232914,3665.7,3664.9,2.72856]
[1732945098811,1.504904,3665.7,3664.9,2.72856]
[1732945098979,0.55,3665.5,3664.9,2.72856]
[1732945099274,3.27849,3665.1,3664.1,2.72918]
[1732945099579,0.55,3664.9,3664.5,2.72887]
[1732945099781,0.55,3664.9,3664.4,2.7289]
[1732945100133,0.5431,3665.3,3664.8,2.72866]
[1732945100374,3.27141,3665.3,3664.2,0.8314]
[1732945100670,2.72847,3665.1,3664.4,2.7289]
[1732945101049,0.55,3665.0,3664.2,0.8314]
[1732945101242,3.2714,3665.3,3664.2,0.8314]
[1732945101243,3.27839,3665.2,3664.6,2.72878]
[1732945101573,3.27839,3665.2,3664.7,2.72871]
[1732945101574,0.55,3665.2,3664.7,2.72871]
[1732945101775,3.27836,3665.2,3664.5,2.72884]
[1732945102078,0.55,3665.2,3664.6,2.72879]
[1732945102378,0.932126,3665.2,3664.2,0.8314]
[1732945102595,0.932126,3665.2,3663.9,0.53719492]
[1732945102596,0.55,3665.6,3664.9,2.72856]
[1732945102800,3.27806,3665.6,3665.0,2.72849]
[1732945103003,3.27806,3665.6,3664.8,3.56]
[1732945103160,3.27806,3665.6,3664.9,2.72855]
[1732945103360,2.72814,3665.5,3664.9,2.72855]
[1732945103687,2.72814,3665.5,3664.9,2.72858]
[1732945105961,0.55,3665.6,3664.8,0.8314]
[1732945106198,0.55,3665.6,3665.0,2.72846]
[1732945106362,3.27812,3665.6,3665.0,2.7285]
[1732945107900,2.72814,3665.5,3664.8,3.916013]
[1732945108207,0.55,3665.6,3664.8,1.187413]
[1732945108404,0.55,3665.6,3665.0,2.7285]
[1732945108598,3.27808,3665.6,3665.0,2.7285]
[1732945109290,2.72821,3665.5,3664.8,3.56006]
[1732945109497,0.55,3665.6,3665.0,2.72849]
[1732945109803,0.55,3665.3,3664.7,2.72866]
[1732945110104,0.55,3665.5,3664.6,2.7288]
[1732945110311,0.55,3665.5,3664.9,2.72853]
[1732945110765,0.55,3665.4,3664.7,2.72871]
[1732945110964,0.55,3665.4,3664.3,0.8085]
[1732945110965,0.55,3665.4,3664.8,2.72866]
[1732945111392,2.72821,3665.4,3664.8,2.72866]
[1732945111596,0.55,3665.3,3664.8,2.72866]
[1732945111796,2.72843,3665.2,3664.3,3.53751]
[1732945112000,2.72848,3665.1,3664.3,3.891261]
[1732945112224,0.5431,3665.7,3664.3,3.891261]
[1732945112225,2.72836,3665.2,3664.6,2.72874]
[1732945112502,0.55,3665.3,3664.7,2.72872]
[1732945112695,3.27829,3665.3,3664.7,2.72872]
[1732945112892,0.5431,3665.2,3664.5,2.72887]
[1732945113109,0.93554944,3665.1,3664.6,2.7288]
[1732945113405,0.55,3665.1,3664.6,2.7288]
[1732945113710,0.55,3665.3,3663.8,0.8085]
[1732945114006,0.55,3665.3,3664.8,2.72863]
[1732945114183,0.55,3665.3,3664.7,2.72866]
[1732945114974,0.55,3665.3,3664.5,3.27569528]
[1732945115174,0.55,3665.3,3664.7,2.72872]
[1732945115797,0.80538505,3665.3,3664.7,2.72872]
[1732945116003,2.72799,3665.7,3665.1,2.72841]
[1732945116172,0.2553646,3665.6,3665.0,0.8085]
[1732945116377,0.2553646,3665.7,3665.0,0.8085]
[1732945116585,0.5431,3665.8,3665.0,0.8085]
[1732945116793,0.25536158,3665.7,3665.2,2.72835]
[1732945117323,0.55,3665.6,3665.2,2.72835]
[1732945117478,0.55,3665.7,3665.2,2.72835]
[1732945117681,0.80536158,3665.7,3665.2,2.72835]
[1732945117889,0.55,3665.7,3665.2,2.72835]
[1732945118092,0.80536231,3665.7,3665.2,2.72835]
[1732945118292,0.55,3665.7,3665.3,2.72827]
[1732945118688,0.55,3665.7,3665.0,0.8085]
[1732945119007,0.005,3666.1,3665.9,2.72784]
[1732945119180,0.005,3666.1,3666.0,2.72776]
[1732945121919,0.005,3666.1,3666.0,3.35417]
[1732945130019,2.73275,3666.1,3665.4,2.72815]
[1732945130215,0.005,3666.1,3665.3,0.7993]
[1732945130451,0.005,3666.1,3665.6,2.72805]
[1732945130730,0.005,3666.1,3665.9,2.72783]
[1732945131160,0.005,3666.1,3665.7,2.72795]
[1732945131452,0.005,3666.1,3665.3,2.72823]
[1732945131620,0.5431,3665.8,3665.3,2.72823]
[1732945131815,0.5431,3665.8,3665.1,2.72843]
[1732945131816,3.27801,3665.7,3665.1,2.72843]
[1732945132013,0.5431,3665.8,3665.1,2.72843]
[1732945132438,0.5431,3665.8,3665.3,2.72823]
[1732945132674,0.005,3666.1,3666.0,3.55236]
[1732945138233,0.005,3666.1,3665.8,2.72786]
[1732945138838,0.005,3666.1,3666.0,3.55236]
[1732945139849,0.005,3666.1,3666.0,2.72776]
[1732945140330,0.005,3666.1,3665.8,2.72786]
[1732945140535,0.005,3666.1,3665.6,2.72805]
[1732945140536,0.005,3666.1,3665.4,0.8246]
[1732945140733,0.005,3666.1,3665.9,2.7278]
[1732945141357,0.005,3666.1,3665.7,2.72795]
[1732945141951,0.005,3666.1,3666.0,2.72776]
[1732945147176,0.005,3666.1,3666.0,3.50296]
[1732945148200,0.5381,3667.2,3666.8,2.72717]
[1732945148739,0.5381,3667.2,3666.5,2.72735]
[1732945148937,0.55,3666.5,3665.9,2.72783]
[1732945149336,0.55,3666.7,3665.8,2.7279]
[1732945149575,2.72746,3666.5,3665.8,2.7279]
[1732945149883,3.27724,3666.7,3665.5,0.91304094]
[1732945150173,3.27724,3666.7,3666.0,2.72775]
[1732945150343,3.27724,3666.7,3666.1,2.72766]
[1732945150537,0.55,3666.7,3666.1,2.72766]
[1732945150790,0.80527181,3666.8,3666.2,2.72758]
[1732945151076,0.55,3666.6,3666.2,2.72758]
[1732945151280,0.55,3666.6,3666.1,2.72763]
[1732945151750,3.27734,3666.6,3666.0,0.545566]
[1732945152072,3.27734,3666.6,3665.5,0.91304094]
[1732945152234,0.55,3666.6,3666.0,2.7277]
[1732945152438,3.27737,3666.6,3666.0,2.7277]
[1732945152641,0.55,3666.6,3666.0,2.7277]
[1732945152842,0.55,3666.6,3665.8,2.7279]
[1732945153089,0.55,3666.6,3666.0,2.72776]
[1732945153380,3.27732,3666.6,3666.0,2.72776]
[1732945153539,0.55,3666.6,3665.9,3.00061]
[1732945153741,0.55,3666.2,3665.5,0.91304094]
[1732945153955,0.55,3666.2,3665.9,2.72779]
[1732945154168,0.5381,3666.3,3665.9,2.72779]
[1732945154578,0.5381,3666.3,3665.7,2.72793]
[1732945154895,2.72826,3665.4,3664.6,2.72873]
[1732945155192,2.72826,3665.4,3664.5,2.72886]
[1732945155193,0.55,3665.0,3664.5,2.72886]
[1732945155600,0.55,3665.0,3664.1,0.826]
[1732945155601,0.55,3665.3,3664.1,2.72916]
[1732945155755,0.5381,3664.8,3664.2,2.72909]
[1732945156097,0.55,3664.7,3663.9,2.72926]
[1732945156254,0.55,3664.5,3663.7,2.72947]
[1732945156592,0.55,3664.3,3663.5,2.72962]
[1732945156797,0.55,3664.3,3663.5,0.628539]
[1732945156955,0.55,3664.3,3663.7,2.72947]
[1732945157157,3.27906,3664.3,3663.5,2.7296]
[1732945157886,0.55,3664.1,3663.5,2.7296]
[1732945158095,0.55,3664.1,3663.0,6.0]
[1732945158096,0.55,3664.1,3663.0,8.72999]
[1732945158321,0.5381,3664.0,3663.0,6.0]
[1732945158454,0.55,3664.5,3663.4,0.826]
[1732945158655,0.55,3664.5,3663.5,5.45926]
[1732945158854,0.55,3664.5,3663.4,0.826]
[1732945159063,0.55,3664.5,3663.9,2.72931]
[1732945159259,0.5381,3664.8,3663.5,0.355571]
[1732945159480,0.55,3664.7,3664.0,2.72918]
[1732945159687,0.55,3664.7,3664.1,2.72917]
[1732945160996,3.27874,3664.7,3663.9,2.72929]
[1732945161360,3.27874,3664.7,3664.0,2.72923]
[1732945162094,3.27874,3664.7,3663.4,3.55565]
[1732945162095,0.55,3664.7,3664.2,2.72908]
[1732945162592,0.55,3664.7,3663.4,0.826]
[1732945162799,0.55,3664.7,3664.3,2.72897]
[1732945163368,0.5381,3664.8,3664.6,2.7288]
[1732945163586,2.72832,3665.3,3664.6,2.7288]
[1732945163587,0.5381,3665.2,3664.6,2.7288]
[1732945164278,0.5381,3665.2,3664.1,0.826]
[1732945164484,0.55,3665.1,3664.4,2.72893]
[1732945164667,0.55,3665.1,3664.6,2.7288]
[1732945165568,0.55,3665.1,3664.4,3.084423]
[1732945165866,3.31257768,3665.1,3664.4,2.72893]
[1732945166981,2.72856,3665.0,3664.3,2.72899]
[1732945167178,0.55,3664.9,3664.3,2.72899]
[1732945167506,0.55,3664.9,3663.5,0.13672755]
[1732945167507,0.5381,3663.7,3663.2,2.72984]
[1732945168293,0.5381,3663.7,3663.3,1.145984]
[1732945168603,0.5381,3663.7,3663.3,3.875744]
[1732945170221,0.5381,3663.7,3663.4,2.7297]
[1732945171225,0.5381,3663.7,3663.5,2.72962]
[1732945171391,0.5381,3663.7,3663.4,2.72965]
[1732945171719,0.5381,3663.7,3663.4,0.3875634]
[1732945172105,0.5381,3663.7,3663.3,1.145984]
[1732945172487,0.5381,3663.7,3663.2,2.72984]
[1732945172684,0.55,3663.4,3663.1,2.72991]
[1732945172885,0.5381,3663.7,3663.5,2.72961]
[1732945173214,0.55,3663.9,3663.3,2.72977]
[1732945173583,0.55,3663.9,3663.4,2.72966]
[1732945173824,0.55,3663.9,3663.5,2.72962]
[1732945174783,0.55,3663.9,3663.3,2.72977]
[1732945174981,0.55,3663.9,3663.4,0.272977]
[1732945175422,0.55,3663.9,3663.5,2.72959]
[1732945175987,0.5381,3664.0,3663.4,2.72968]
[1732945176824,0.5381,3664.0,3663.7,2.72947]
[1732945178529,0.5381,3664.0,3663.5,2.72962]
[1732945178916,0.55,3663.9,3663.0,6.0]
[1732945179115,0.55,3663.9,3663.3,2.72971]
[1732945179636,0.55,3663.9,3663.2,2.72985]
[1732945179794,0.55,3663.9,3663.4,2.72964]
[1732945180233,0.55,3663.9,3663.2,2.72985]
[1732945180391,0.55,3663.9,3663.3,2.72971]
[1732945180820,0.03412026,3663.8,3663.1,2.72992]
[1732945181039,0.55,3663.7,3663.1,2.72992]
[1732945181241,3.27964,3663.5,3663.0,6.0]
[1732945181738,0.55,3663.5,3663.0,6.0]
[1732945181896,1.0881,3664.0,3663.4,2.7297]
[1732945182101,3.81736,3664.0,3663.3,2.72972]
[1732945182303,3.81736,3664.0,3663.4,2.72969]
[1732945182654,1.0881,3664.0,3663.4,2.72969]
[1732945182798,1.0881,3664.0,3663.0,6.0]
[1732945183139,0.55,3663.5,3663.0,6.0]
[1732945183433,0.55,3663.5,3663.2,2.72979]
[1732945183632,0.55,3663.5,3663.3,2.72976]
[1732945183835,0.5381,3663.6,3663.5,2.72963]
[1732945184131,0.55,3663.8,3663.7,2.72948]
[1732945184296,0.5381,3663.9,3663.7,2.72941]
[1732945186041,0.5381,3663.9,3663.8,2.7294]
[1732945186332,0.5381,3664.5,3664.3,2.72901]
[1732945186531,0.5381,3664.5,3664.4,2.72895]
[1732945186734,0.5381,3665.6,3664.2,0.8055]
[1732945187065,0.79312504,3665.6,3664.9,2.72855]
[1732945187338,0.3521155,3665.5,3664.2,0.8055]
[1732945187561,0.5381,3665.6,3664.7,2.72868]
[1732945187707,2.72823,3665.4,3664.7,2.72868]
[1732945188039,3.26623,3665.6,3664.8,2.72864]
[1732945188195,3.26623,3665.6,3664.0,2.72921]
[1732945188196,2.72831,3665.3,3664.6,2.72875]
[1732945188395,0.55,3665.2,3664.6,2.72875]
[1732945188646,0.58410621,3665.2,3664.6,2.72875]
[1732945188969,0.58410621,3665.2,3664.4,2.72894]
[1732945188970,0.5381,3665.1,3664.4,2.72894]
[1732945189130,0.5381,3665.1,3663.9,0.8055]
[1732945189131,0.55,3665.0,3664.6,2.72878]
[1732945189922,0.55,3665.0,3664.8,2.72865]
[1732945190138,0.55,3665.0,3664.6,2.72878]
[1732945190513,0.55,3665.0,3664.4,2.72894]
[1732945190712,0.55,3665.0,3664.7,2.72871]
[1732945190922,0.55,3665.0,3664.0,2.72918]
[1732945190923,2.72874,3664.7,3664.0,2.7292]
[1732945191235,2.72874,3664.7,3663.7,0.545903]
[1732945191236,0.5381,3664.4,3663.7,3.275373]
[1732945191408,0.58411599,3664.3,3663.7,2.72947]
[1732945191765,0.55,3663.9,3663.2,2.72978]
[1732945192050,0.55,3663.9,3663.1,2.72985]
[1732945192051,0.5841185,3663.9,3663.3,2.72975]
[1732945192200,0.5841185,3663.9,3663.4,2.72968]
[1732945192400,0.55,3663.9,3663.4,2.72968]
[1732945192645,0.55,3663.7,3662.9,2.73002]
[1732945192841,0.55,3663.7,3662.3,2.73046]
[1732945192842,0.55,3663.7,3663.1,2.72992]
[1732945193056,0.55,3663.7,3663.3,2.72976]
[1732945193343,0.55,3663.7,3663.2,2.72979]
[1732945193550,11.07239124,3664.6,3662.4,0.53887622]
[1732945193551,0.55,3663.2,3662.6,2.73024]
[1732945193720,0.55,3663.2,3662.8,2.73008]
[1732945193916,0.55,3663.4,3662.9,2.73007]
[1732945195638,0.55,3663.4,3662.7,2.7302]
[1732945196045,0.55,3663.4,3662.8,2.73013]
[1732945197544,0.55,3663.4,3662.9,2.73006]
[1732945198626,0.55,3663.2,3662.9,2.73006]
[1732945198811,3.26775,3663.5,3663.0,6.873006]
[1732945198812,0.5381,3663.5,3663.0,6.873006]
[1732945199321,0.5381,3663.9,3663.5,2.72961]
[1732945199856,0.5381,3663.9,3663.5,2.7296]
[1732945200239,0.55,3663.8,3663.5,2.7296]
[1732945200774,0.5381,3663.9,3663.7,2.72948]
[1732945200942,0.5381,3664.3,3663.0,6.873006]
[1732945201280,0.25482133,3664.6,3664.2,2.72905]
[1732945201571,0.5381,3664.7,3664.5,2.72888]
[1732945202151,0.5381,3664.7,3664.6,2.72881]
[1732945202379,0.5381,3665.1,3664.6,2.72881]
[1732945202671,0.03410934,3665.0,3664.4,2.72895]
[1732945202884,0.5381,3665.1,3664.4,2.72895]
[1732945203084,0.79284875,3665.1,3664.4,2.72895]
[1732945203231,2.72852,3665.0,3664.4,2.72895]
[1732945203564,0.55,3664.9,3664.4,2.72895]
[1732945204006,0.55,3665.0,3664.4,2.72895]
[1732945206034,0.55,3665.0,3663.7,3.53492]